bitfinex-derivatives/quotes_ETHF0:USTF0_20250212
["timestamp","ask_amount","ask_price","bid_price","bid_amount"]
[1739378933724,1.848,2613.7,2613.1,4.02624291]
[1739378933918,0.00574658,2614.0,2613.2,1.6886]
[1739378934117,2.61890658,2614.0,2613.6,0.76524]
[1739378935020,1.85374658,2614.0,2613.4,3.2078]
[1739378935216,1.85374658,2614.0,2613.7,0.76523]
[1739378935623,1.85374658,2614.0,2613.4,7.23404291]
[1739378935824,0.00574658,2614.0,2613.8,0.76519]
[1739378936120,0.00574658,2614.0,2613.9,0.76517]
[1739378938127,0.00574658,2614.0,2613.8,0.586]
[1739378938721,0.00574658,2614.0,2613.9,0.76517]
[1739378938929,0.00574658,2614.0,2613.9,1.96337]
[1739378940025,6.37412,2614.8,2613.9,12.15154662]
[1739378940222,3.7612,2614.8,2614.6,0.76496]
[1739378940424,3.7877,2615.1,2614.7,3.2078]
[1739378940620,3.2078,2616.1,2615.5,0.76469]
[1739378940817,0.83070544,2616.0,2615.6,4.79090291]
[1739378941126,0.83070544,2616.0,2615.6,0.76466]
[1739378941127,0.76458,2616.0,2615.6,0.76466]
[1739378941323,3.97242,2615.8,2615.5,0.00573548]
[1739378941530,3.2078,2615.8,2615.5,0.00573548]
[1739378941927,0.76461,2615.9,2615.5,0.77042548]
[1739378942124,1.847,2616.0,2615.5,0.77042548]
[1739378942432,1.847,2616.0,2615.5,0.00573548]
[1739378942626,0.76466,2615.7,2615.5,0.00573548]
[1739378943127,1.36566,2615.7,2615.5,0.00573548]
[1739378943321,0.601,2615.7,2615.5,0.00573548]
[1739378943932,3.21353548,2616.1,2615.5,0.00573548]
[1739378944131,3.21353548,2616.1,2615.9,0.76457]
[1739378944327,3.21353548,2616.1,2615.6,4.02624291]
[1739378944637,3.21353548,2616.1,2615.8,0.7646]
[1739378944831,3.21353548,2616.1,2615.7,0.76463]
[1739378945129,3.21353548,2616.1,2615.8,0.7646]
[1739378945429,3.21353548,2616.1,2615.6,4.02624291]
[1739378945430,0.00573548,2616.1,2615.6,4.02624291]
[1739378945919,0.00573548,2616.1,2616.0,0.76456]
[1739378946325,0.00573548,2616.1,2615.6,7.23404291]
[1739378946630,0.00573548,2616.1,2615.6,4.02624291]
[1739378946829,0.00573548,2616.1,2615.5,1.18673548]
[1739378947030,3.97238,2616.0,2615.6,0.76467]
[1739378947329,0.7646,2615.9,2615.5,0.61103548]
[1739378947530,1.3209,2615.9,2615.5,0.00573548]
[1739378947734,3.1669,2615.9,2615.5,0.77042548]
[1739378948033,2.4023,2615.9,2615.6,0.76467]
[1739378948435,5.0538,2616.0,2615.7,0.76462]
[1739378948833,0.77027548,2616.1,2616.0,0.76456]
[1739378948834,0.00573548,2616.1,2616.0,0.76456]
[1739378950627,3.2078,2616.7,2616.0,9.2078]
[1739378950836,3.2078,2616.7,2616.0,5.63244072]
[1739378951036,3.2078,2616.7,2616.0,0.5759]
[1739378951338,0.76442,2616.5,2616.1,0.76451]
[1739378951538,0.76442,2616.5,2616.0,0.5759]
[1739378951728,1.846,2616.5,2616.0,0.5759]
[1739378951935,0.76446,2616.4,2616.1,0.76452]
[1739378952433,0.76446,2616.4,2616.0,0.5759]
[1739378952632,1.846,2616.5,2615.6,8.37119291]
[1739378952633,1.846,2616.5,2615.9,0.76458]
[1739378952833,0.76444,2616.4,2616.0,0.76455]
[1739378953339,1.846,2616.5,2615.6,4.61354291]
[1739378953340,2.61042,2616.5,2616.1,0.76453]
[1739378953538,2.61042,2616.5,2616.2,0.7645]
[1739378954039,1.846,2616.5,2616.1,0.76452]
[1739378954236,1.846,2616.5,2615.7,3.2078]
[1739378954537,0.76454,2616.1,2615.8,0.76462]
[1739378954736,7.78329291,2616.5,2615.5,0.00573548]
[1739378954737,3.2078,2616.0,2615.5,0.00573548]
[1739378954937,3.97236,2616.0,2615.5,0.00573548]
[1739378955138,0.5703,2615.9,2615.5,0.00573548]
[1739378955331,0.5738,2616.2,2615.5,0.00573548]
[1739378955534,0.5738,2616.2,2615.9,0.76457]
[1739378955831,1.33831,2616.2,2615.9,0.76457]
[1739378956138,1.33831,2616.2,2615.5,0.57793548]
[1739378956340,3.2078,2616.3,2616.0,0.76455]
[1739378956536,3.2078,2616.3,2615.6,5.93794291]
[1739378956732,3.2078,2616.3,2616.1,0.76452]
[1739378956938,3.2078,2616.3,2616.2,0.7645]
[1739378957146,3.2078,2616.3,2616.1,0.76451]
[1739378957444,3.2078,2616.3,2616.2,0.7645]
[1739378959033,3.2078,2616.3,2615.9,0.5926]
[1739378959241,3.2078,2616.3,2615.7,3.2078]
[1739378959440,0.76457,2616.0,2615.7,3.97243]
[1739378959643,1.845,2616.2,2615.7,3.97243]
[1739378959837,0.76458,2616.0,2615.7,3.97244]
[1739378960738,3.9724,2615.9,2615.6,0.76467]
[1739378961035,0.76463,2615.8,2615.5,0.77042548]
[1739378961240,3.2078,2615.9,2615.5,0.00573548]
[1739378961437,3.97248,2615.6,2615.5,0.00573548]
[1739378961636,5.81748,2615.6,2615.5,0.00573548]
[1739378962141,5.88361809,2615.6,2615.5,0.00573548]
[1739378962531,11.11893809,2615.6,2614.6,3.2078]
[1739378962735,0.76486,2615.0,2614.6,3.2078]
[1739378963145,5.0528,2615.1,2614.6,3.2078]
[1739378963443,0.6057,2615.0,2614.6,3.2078]
[1739378963643,5.0528,2615.1,2614.6,3.2078]
[1739378963842,5.82336548,2615.1,2614.6,3.2078]
[1739378964141,5.05853548,2615.1,2614.7,0.76492]
[1739378964342,0.00573548,2615.1,2614.9,0.76488]
[1739378964531,0.00573548,2615.1,2614.6,4.4147]
[1739378964731,0.00573548,2615.1,2615.0,4.79109291]
[1739378964942,3.2078,2615.7,2615.0,12.63609291]
[1739378965147,3.2078,2615.7,2615.6,0.76468]
[1739378965639,3.2078,2616.0,2615.4,5.16944291]
[1739378965841,3.2078,2616.0,2615.7,0.76464]
[1739378966445,3.2078,2616.0,2615.6,0.76465]
[1739378966847,3.97237,2616.0,2615.6,0.76465]
[1739378967043,3.2078,2616.0,2615.0,3.7892]
[1739378967345,3.2078,2615.6,2615.1,0.76481]
[1739378967543,3.2078,2615.6,2615.0,0.5814]
[1739378967746,5.0528,2615.9,2615.1,5.93830291]
[1739378968044,5.0528,2615.9,2615.7,0.76464]
[1739378968245,3.2078,2615.9,2615.8,0.76462]
[1739378968441,0.00573548,2616.1,2616.0,0.76456]
[1739378971648,0.00573548,2616.1,2616.0,1.36586]
[1739378972635,0.00573548,2616.1,2616.0,0.76456]
[1739378974738,0.00573548,2616.1,2615.6,3.2078]
[1739378975048,5.05853548,2616.1,2615.3,5.11966]
[1739378975348,0.5573,2616.0,2615.7,0.76463]
[1739378975647,0.5573,2616.0,2615.8,0.7646]
[1739378976038,0.5573,2616.0,2615.7,0.76464]
[1739378976239,1.32186,2616.0,2615.6,0.76466]
[1739378976441,0.5573,2616.0,2615.3,5.11966]
[1739378976749,1.32186,2616.0,2615.3,5.11966]
[1739378976947,1.32186,2616.0,2615.7,0.76464]
[1739378977140,0.5573,2616.0,2615.3,5.11966]
[1739378977340,0.5573,2616.0,2615.9,0.76459]
[1739378977736,0.5573,2616.0,2615.4,5.93808291]
[1739378977954,0.5573,2616.0,2615.8,0.7646]
[1739378978246,0.5573,2616.0,2615.9,0.76459]
[1739378978838,3.21353548,2616.1,2616.0,0.76456]
[1739378980250,0.00573548,2616.1,2616.0,0.76456]
[1739378980949,0.77028548,2616.1,2615.9,0.76457]
[1739378981446,3.97237,2616.0,2615.7,0.76462]
[1739378981845,0.76457,2616.0,2615.8,0.76462]
[1739378982142,0.00573548,2616.1,2615.6,0.5736]
[1739378982451,3.97239,2615.9,2615.6,1.33826]
[1739378982751,0.76464,2615.8,2615.5,0.7647]
[1739378983158,3.2078,2615.9,2615.3,1.7437]
[1739378983341,3.2078,2615.9,2615.7,0.76464]
[1739378983542,3.9724,2615.9,2615.6,0.76467]
[1739378983747,0.76469,2615.6,2615.3,1.31966]
[1739378984053,1.844,2615.8,2615.3,0.76476]
[1739378984350,0.76467,2615.7,2615.3,0.76476]
[1739378984745,2.60863,2615.8,2615.2,3.2078]
[1739378984945,3.97241,2615.9,2615.5,0.7647]
[1739378985147,5.0518,2615.9,2615.6,0.76467]
[1739378985450,0.5659,2616.0,2615.4,7.23404291]
[1739378985753,0.77029548,2616.1,2615.7,0.76464]
[1739378986049,3.2078,2616.0,2615.2,5.07878494]
[1739378986349,0.76467,2615.7,2614.9,2.46707]
[1739378986549,3.97247,2615.7,2615.3,0.76474]
[1739378986851,0.76462,2615.8,2615.4,0.76473]
[1739378987160,3.773,2616.0,2615.2,1.91199]
[1739378987444,0.00573548,2616.1,2615.7,4.02624291]
[1739378987654,0.00573548,2616.1,2616.0,0.76456]
[1739378988946,0.00573548,2616.1,2616.0,7.99860291]
[1739378990858,0.00573548,2616.1,2616.0,3.97236]
[1739378991553,0.00573548,2616.1,2616.0,0.76456]
[1739378994359,5.48e-06,2616.1,2616.0,18.88420542]
[1739378994560,5.48e-06,2616.1,2616.0,19.45900542]
[1739378994859,3.803,2617.1,2617.0,0.76427]
[1739378996161,0.00379036,2617.3,2616.8,0.00573548]
[1739378996359,0.00379036,2617.3,2617.2,0.76421]
[1739378997758,5.6497,2617.8,2617.3,1.91044]
[1739378997963,5.6497,2617.8,2617.6,0.76407]
[1739378998162,6.41375,2617.8,2617.5,0.76411]
[1739378998357,0.76414,2617.5,2617.1,0.76422]
[1739378998562,3.97194,2617.5,2617.1,0.76422]
[1739378998864,3.2078,2617.5,2616.8,0.00573548]
[1739378999458,3.2078,2617.5,2617.4,0.76415]
[1739379001464,3.2078,2618.2,2618.1,0.76393]
[1739379001761,3.2078,2619.7,2618.4,0.76386]
[1739379001967,0.06605184,2619.6,2619.3,3.2078]
[1739379002172,0.7635,2619.7,2619.1,4.02624291]
[1739379002361,0.59,2619.5,2619.1,4.02624291]
[1739379002562,0.5502,2619.4,2619.0,3.2078]
[1739379002867,4.52159,2619.4,2619.0,3.2078]
[1739379003168,3.758,2619.4,2619.0,7.23404291]
[1739379003462,0.5502,2619.4,2619.3,4.02624291]
[1739379003768,0.5502,2619.4,2619.1,0.76363]
[1739379004566,0.5502,2619.4,2619.0,7.23404291]
[1739379004767,0.5502,2619.4,2619.1,0.76365]
[1739379004959,0.5502,2619.4,2619.0,7.23404291]
[1739379004960,0.5502,2619.4,2619.3,4.02624291]
[1739379005163,0.5502,2619.4,2619.3,7.23404291]
[1739379005861,0.5502,2619.4,2619.3,3.2078]
[1739379005862,6.5502,2619.4,2619.3,3.2078]
[1739379006066,6.5502,2619.4,2619.0,3.2078]
[1739379006269,1.85,2619.3,2619.0,3.2078]
[1739379006565,0.5502,2619.4,2619.0,7.23404291]
[1739379006760,1.85,2619.3,2619.0,7.99772291]
[1739379007158,2.4012,2619.4,2619.0,7.23404291]
[1739379007358,0.59,2619.5,2619.3,7.23404291]
[1739379007564,20.018,2620.8,2619.3,7.23404291]
[1739379007565,21.09156312,2620.8,2619.4,5.93517291]
[1739379007769,0.94059061,2620.0,2619.9,7.99746291]
[1739379008766,0.94059061,2620.0,2619.9,7.23404291]
[1739379009564,0.94059061,2620.0,2619.9,3.2078]
[1739379009870,0.94059061,2620.0,2618.8,21.92404548]
[1739379009871,0.76351,2619.6,2619.3,4.02624291]
[1739379010171,3.22655,2619.5,2619.2,3.2078]
[1739379010471,0.7636,2619.3,2619.2,3.2078]
[1739379010861,0.76358,2619.4,2619.2,3.2078]
[1739379011467,2.463,2619.5,2619.2,3.2078]
[1739379011771,3.22655,2619.5,2619.2,3.2078]
[1739379012176,5.6708,2619.5,2618.9,3.2078]
[1739379012375,0.76368,2619.1,2618.9,3.2078]
[1739379012670,2.4442,2619.0,2618.9,3.2078]
[1739379013966,0.596,2619.5,2618.9,3.2078]
[1739379014268,3.2078,2619.8,2619.4,4.02624291]
[1739379014269,0.5996,2619.8,2619.4,4.02624291]
[1739379014569,2.81559061,2620.0,2619.7,7.23404291]
[1739379014973,0.94059061,2620.0,2619.7,7.23404291]
[1739379015672,0.94059061,2620.0,2619.7,7.99750291]
[1739379016073,0.94059061,2620.0,2619.8,0.5704]
[1739379016979,0.94059061,2620.0,2619.7,3.2078]
[1739379017171,0.76344,2619.9,2619.7,3.2078]
[1739379017577,1.70400061,2620.0,2619.7,3.2078]
[1739379017778,0.94059061,2620.0,2619.7,7.23404291]
[1739379019679,0.94059061,2620.0,2619.7,3.2078]
[1739379019874,0.76345,2619.8,2619.4,7.23404291]
[1739379020382,0.76347,2619.8,2619.4,7.23404291]
[1739379020573,0.76348,2619.8,2619.4,7.23404291]
[1739379020774,0.76348,2619.7,2619.4,4.02624291]
[1739379020974,0.94059061,2620.0,2619.4,4.02624291]
[1739379020975,0.94059061,2620.0,2619.6,3.2078]
[1739379021175,0.76348,2619.7,2619.6,3.2078]
[1739379021877,0.76348,2619.7,2619.1,0.76365]
[1739379021878,1.867,2619.8,2619.3,3.2078]
[1739379022187,0.76357,2619.4,2619.3,3.2078]
[1739379022376,2.46615,2619.7,2619.1,4.02624291]
[1739379022682,0.76358,2619.4,2619.3,3.2078]
[1739379024479,0.76366,2619.1,2618.9,3.2078]
[1739379024677,1.863,2619.3,2618.9,3.2078]
[1739379024876,0.76366,2619.1,2618.9,3.2078]
[1739379025076,1.863,2619.3,2618.9,3.2078]
[1739379025272,1.863,2619.3,2619.1,4.02624291]
[1739379025273,0.76363,2619.2,2619.1,4.02624291]
[1739379025877,0.76363,2619.2,2618.9,3.2078]
[1739379025878,1.863,2619.3,2618.9,3.2078]
[1739379026080,0.76368,2619.0,2618.9,3.2078]
[1739379026582,0.76368,2619.1,2618.9,3.2078]
[1739379026881,0.76364,2619.2,2618.9,3.2078]
[1739379027084,0.76364,2619.2,2619.1,4.02624291]
[1739379027277,1.862,2619.3,2618.9,3.2078]
[1739379027474,0.76368,2619.0,2618.9,3.2078]
[1739379027675,1.862,2619.3,2618.9,3.2078]
[1739379027883,0.76368,2619.0,2618.9,3.2078]
[1739379028185,1.862,2619.3,2618.9,3.2078]
[1739379028484,0.76367,2619.1,2618.9,3.2078]
[1739379028686,0.5664,2619.5,2618.9,3.2078]
[1739379028981,0.76363,2619.2,2618.8,4.79569839]
[1739379029171,0.76363,2619.2,2619.1,3.2078]
[1739379030781,1.859,2619.4,2619.1,3.2078]
[1739379030986,0.76358,2619.4,2619.1,7.23404291]
[1739379031193,0.76358,2619.4,2619.2,0.5986]
[1739379031687,1.855,2619.5,2619.2,0.5986]
[1739379032279,0.5688,2619.9,2619.2,0.5986]
[1739379032480,0.76345,2619.8,2619.4,7.99759291]
[1739379033289,0.76347,2619.8,2619.4,3.97135]
[1739379033494,2.62147,2619.8,2619.4,3.97135]
[1739379033786,2.62047,2619.8,2619.4,3.97135]
[1739379033981,1.857,2619.8,2619.4,3.97135]
[1739379034287,0.76349,2619.7,2619.4,3.2078]
[1739379034485,1.856,2619.9,2619.4,3.2078]
[1739379034690,0.76346,2619.8,2619.5,0.76352]
[1739379035388,1.856,2619.9,2619.4,7.23404291]
[1739379035583,0.76346,2619.8,2619.4,7.99758291]
[1739379035779,0.76348,2619.7,2619.4,7.99758291]
[1739379036686,0.76349,2619.7,2619.4,7.99760291]
[1739379037581,0.76344,2619.9,2619.6,0.76349]
[1739379037785,2.62044,2619.9,2619.6,0.76349]
[1739379037984,1.857,2619.9,2619.8,3.2078]
[1739379038191,2.62042,2619.9,2619.8,3.2078]
[1739379038692,0.76342,2619.9,2619.8,3.2078]
[1739379039187,0.94059061,2620.0,2619.9,0.76342]
[1739379039389,0.94059061,2620.0,2619.9,1.36542]
[1739379039695,0.02429061,2620.0,2619.9,2.48699259]
[1739379039986,0.499,2620.3,2620.2,0.76333]
[1739379040199,0.499,2620.3,2620.2,7.99737291]
[1739379040390,0.499,2620.3,2620.2,9.12455126]
[1739379040587,1.32721,2621.0,2620.7,0.76318]
[1739379040783,1.32721,2621.0,2620.9,3.2078]
[1739379041095,0.76311,2621.0,2620.9,3.2078]
[1739379041282,2.4362,2621.3,2620.9,3.2078]
[1739379041283,1.34122,2621.3,2621.0,0.76309]
[1739379041588,0.5782,2621.3,2621.2,3.2078]
[1739379043181,0.5805,2621.4,2621.2,3.2078]
[1739379043989,1.3435,2621.4,2620.9,3.2078]
[1739379044385,0.5805,2621.4,2621.3,3.2078]
[1739379044585,1.34348,2621.4,2621.3,3.2078]
[1739379044893,1.34348,2621.4,2621.0,3.2078]
[1739379044894,0.76303,2621.3,2621.0,3.2078]
[1739379045187,0.5805,2621.4,2621.0,3.2078]
[1739379045387,0.5933,2621.7,2621.0,3.2078]
[1739379045693,0.76296,2621.5,2621.1,0.76306]
[1739379045988,0.76299,2621.4,2621.0,3.97089]
[1739379046195,0.76301,2621.4,2621.0,3.2078]
[1739379046389,1.849,2621.6,2621.0,3.2078]
[1739379046591,0.76306,2621.2,2621.0,3.2078]
[1739379046791,3.2078,2621.4,2621.0,3.2078]
[1739379046792,0.76307,2621.1,2621.0,3.2078]
[1739379047090,1.854,2621.1,2621.0,3.2078]
[1739379047285,0.7631,2621.0,2620.7,3.21352388]
[1739379047595,1.8958,2621.0,2620.7,3.21352388]
[1739379047990,1.1327,2621.0,2620.7,3.21352388]
[1739379048195,1.853,2621.0,2620.7,3.21352388]
[1739379048690,1.853,2621.0,2620.8,4.02624291]
[1739379048993,1.90727,2621.7,2620.8,4.02624291]
[1739379049187,0.76298,2621.4,2621.3,3.2078]
[1739379049991,6.76298,2621.4,2621.3,3.2078]
[1739379050188,6.82896323,2621.4,2621.3,3.2078]
[1739379050389,0.76307,2621.1,2621.0,3.2078]
[1739379050591,2.62007,2621.1,2621.0,3.2078]
[1739379051988,8.68605902,2621.1,2621.0,3.2078]
[1739379052193,8.68606097,2621.1,2621.0,3.2078]
[1739379052397,2.68606097,2621.1,2621.0,3.2078]
[1739379052791,8.68606097,2621.1,2621.0,3.2078]
[1739379053196,0.76316,2620.8,2620.7,0.00572388]
[1739379053392,1.90801,2620.7,2620.3,3.2078]
[1739379053688,0.76328,2620.4,2620.3,3.2078]
[1739379055302,0.76333,2620.2,2620.1,0.00572388]
[1739379055600,0.5992,2620.5,2620.1,0.00572388]
[1739379055799,0.76328,2620.4,2620.3,3.2078]
[1739379055998,0.82928876,2620.4,2620.3,3.2078]
[1739379056204,0.82928767,2620.4,2620.3,3.2078]
[1739379056498,0.76333,2620.2,2620.1,0.00572388]
[1739379057408,0.76339,2620.0,2619.9,3.2078]
[1739379057597,0.76348,2619.7,2619.6,3.2078]
[1739379057799,5.0568,2620.0,2619.3,3.2078]
[1739379058103,0.76354,2619.5,2619.3,3.2078]
[1739379058301,1.9086,2619.9,2619.3,3.2078]
[1739379058494,0.76357,2619.4,2619.3,3.2078]
[1739379059097,1.847,2619.5,2619.3,3.2078]
[1739379059294,0.00572388,2619.7,2619.3,7.23404291]
[1739379059494,0.00572388,2619.7,2619.6,3.2078]
[1739379060200,0.76920388,2619.7,2619.6,3.2078]
[1739379060511,0.00572388,2619.7,2619.6,3.2078]
[1739379060704,0.00572388,2619.7,2619.6,7.99755291]
[1739379060903,0.00572388,2619.7,2619.6,3.2078]
[1739379061607,2.61820388,2619.7,2619.6,3.2078]
[1739379061807,0.76353,2619.6,2619.3,3.2078]
[1739379062001,0.00572388,2619.7,2619.6,0.76351]
[1739379062209,0.00572388,2619.7,2619.6,3.97131]
[1739379062919,0.76328,2620.4,2619.7,1.90871]
[1739379063115,0.76328,2620.4,2620.1,3.2078]
[1739379063317,0.76325,2620.5,2620.2,0.76333]
[1739379063516,2.61525,2620.5,2620.1,3.97115]
[1739379064112,1.852,2620.5,2620.1,3.2078]
[1739379064323,2.61526,2620.5,2620.4,3.2078]
[1739379064527,1.852,2620.5,2620.4,3.2078]
[1739379064712,0.00568521,2620.6,2620.4,3.2078]
[1739379064915,0.00568521,2620.6,2620.5,4.78949291]
[1739379065523,2.61604,2621.3,2620.5,4.63684291]
[1739379065822,2.61602,2621.3,2621.0,3.2078]
[1739379066022,0.76306,2621.2,2621.0,3.2078]
[1739379066221,2.61602,2621.3,2621.0,3.2078]
[1739379066526,1.853,2621.3,2621.0,3.2078]
[1739379066821,2.61602,2621.3,2621.0,3.2078]
[1739379067013,0.76302,2621.3,2621.0,3.8047]
[1739379067321,1.1901,2621.6,2621.0,3.8047]
[1739379067522,2.61102,2621.3,2621.0,3.8047]
[1739379067713,2.61102,2621.3,2620.9,0.00572388]
[1739379067714,5.87424291,2621.3,2620.9,0.00572388]
[1739379067915,4.78934291,2621.0,2620.9,0.00572388]
[1739379068217,0.7631,2621.0,2620.9,0.00572388]
[1739379068813,1.857,2621.0,2620.9,0.00572388]
[1739379069017,5.21634291,2621.6,2620.9,0.00572388]
[1739379069221,1.92298203,2621.5,2620.9,0.00572388]
[1739379069411,1.857,2621.5,2621.0,3.2078]
[1739379069617,0.00657796,2621.2,2621.1,0.76307]
[1739379069812,0.00657796,2621.2,2621.1,3.2078]
[1739379070013,0.00657796,2621.2,2621.0,1.186]
[1739379070815,0.00657796,2621.2,2621.0,1.9491]
[1739379071016,0.00657796,2621.2,2621.0,1.186]
[1739379072124,0.76961796,2621.2,2621.1,3.2078]
[1739379072312,0.76961796,2621.2,2621.0,1.186]
[1739379072313,0.76307,2621.1,2621.0,1.186]
[1739379073412,0.7631,2621.0,2620.9,0.00572388]
[1739379073827,0.8290898,2621.0,2620.9,0.00572388]
[1739379074124,0.7631,2621.0,2620.9,0.00572388]
[1739379074822,1.849,2621.0,2620.9,0.00572388]
[1739379075220,2.6121,2621.0,2620.9,0.00572388]
[1739379075419,1.849,2621.0,2620.9,0.00572388]
[1739379075925,0.76964796,2621.2,2620.9,0.00572388]
[1739379076121,2.61663796,2621.2,2621.0,3.2078]
[1739379076423,0.00657796,2621.2,2620.9,0.76883388]
[1739379076623,0.00657796,2621.2,2621.0,3.2078]
[1739379077028,0.00657796,2621.2,2620.9,0.00572388]
[1739379077228,0.76962796,2621.2,2620.9,0.76885388]
[1739379077631,0.00657796,2621.2,2621.0,3.2078]
[1739379077821,0.00657796,2621.2,2621.0,3.9709]
[1739379078024,0.00657796,2621.2,2621.0,3.2078]
[1739379078328,0.76962796,2621.2,2620.9,0.00572388]
[1739379078524,0.00657796,2621.2,2621.1,3.2078]
[1739379079220,0.00657796,2621.2,2621.1,3.97087]
[1739379080629,0.00657796,2621.2,2621.1,7.99711291]
[1739379082031,2.07101719,2623.1,2622.5,0.76266]
[1739379082227,0.76252,2623.0,2622.9,3.2078]
[1739379082529,1.90638,2622.9,2622.3,7.23404291]
[1739379082723,0.76257,2622.9,2622.7,3.21352388]
[1739379082919,0.16477719,2623.1,2622.7,3.21352388]
[1739379083230,0.16477719,2623.1,2623.0,7.23404291]
[1739379083629,0.76239,2623.5,2623.0,7.23404291]
[1739379083924,0.76239,2623.5,2622.8,0.5604]
[1739379083925,1.89,2623.5,2622.8,0.5604]
[1739379084131,0.76255,2622.9,2622.7,0.00572388]
[1739379084327,3.2078,2623.1,2622.7,0.00572388]
[1739379084631,3.97038,2622.8,2622.7,0.00572388]
[1739379085818,5.87238,2622.8,2622.7,0.00572388]
[1739379086019,5.1098,2622.8,2622.1,4.02624291]
[1739379086324,0.76265,2622.6,2622.2,3.2078]
[1739379086526,0.76274,2622.3,2621.9,3.2078]
[1739379086829,1.33449,2622.5,2621.9,3.2078]
[1739379087030,0.76274,2622.3,2621.9,3.2078]
[1739379087231,1.904,2622.2,2621.9,3.21352388]
[1739379087727,0.00572388,2622.5,2621.9,3.21352388]
[1739379088032,0.00572388,2622.5,2622.2,3.2078]
[1739379088525,0.00572388,2622.5,2621.9,3.21352388]
[1739379088922,0.76275,2622.2,2621.9,3.21352388]
[1739379089124,0.6075,2622.1,2621.9,3.21352388]
[1739379089324,2.66581,2622.0,2621.9,0.00572388]
[1739379089626,5.6772,2622.0,2621.4,3.2078]
[1739379089927,0.76294,2621.6,2621.4,3.2078]
[1739379090132,5.6772,2622.0,2621.1,3.2078]
[1739379090426,5.6772,2622.0,2621.6,3.2078]
[1739379090427,2.4694,2622.0,2621.6,3.2078]
[1739379090628,3.23223,2622.0,2621.6,3.2078]
[1739379090930,5.6772,2622.0,2621.5,0.00572388]
[1739379091131,0.76293,2621.6,2621.5,0.00572388]
[1739379092433,1.905,2621.7,2621.5,0.00572388]
[1739379092735,0.76293,2621.6,2621.5,0.00572388]
[1739379093233,1.907,2621.8,2621.5,0.00572388]
[1739379093427,2.6699,2621.8,2621.5,0.00572388]
[1739379094135,0.76285,2621.9,2621.5,0.00572388]
[1739379094336,1.904,2621.9,2621.5,0.00572388]
[1739379094630,1.904,2621.9,2621.6,3.2078]
[1739379094932,0.5741,2622.3,2621.7,0.5775]
[1739379095132,1.902,2622.4,2621.9,3.2078]
[1739379095331,0.76275,2622.3,2621.9,3.2078]
[1739379095927,1.902,2622.4,2621.9,3.2078]
[1739379096435,0.76293,2621.6,2621.5,0.00572388]
[1739379097027,1.90689,2622.2,2621.5,0.00572388]
[1739379097028,3.82949,2622.8,2621.8,0.76286]
[1739379097227,3.0861,2622.8,2622.0,3.2078]
[1739379097634,0.7627,2622.4,2622.0,3.2078]
[1739379097837,0.76269,2622.4,2622.0,3.2078]
[1739379098234,1.922,2622.3,2621.5,0.00572388]
[1739379098530,0.76285,2621.9,2621.7,3.2078]
[1739379098837,4.3709,2622.2,2621.5,0.00572388]
[1739379099034,4.09220776,2622.1,2621.5,0.00572388]
[1739379099336,0.76293,2621.6,2621.5,0.00572388]
[1739379099531,2.68388,2621.8,2621.5,3.21352388]
[1739379100135,0.76288,2621.8,2621.5,3.21352388]
[1739379100334,0.76285,2621.9,2621.5,3.21352388]
[1739379101137,1.921,2622.0,2621.5,3.21352388]
[1739379101338,0.76291,2621.7,2621.5,3.21352388]
[1739379101633,1.921,2622.0,2621.5,0.00572388]
[1739379101833,0.76293,2621.6,2621.5,0.00572388]
[1739379102037,1.90742,2621.5,2620.5,3.8046]
[1739379102338,1.90742,2621.5,2620.8,3.2078]
[1739379102339,1.98898613,2621.4,2620.8,3.2078]
[1739379102541,1.923,2621.4,2621.0,0.76309]
[1739379102749,1.923,2621.4,2621.1,3.2078]
[1739379103036,0.7631,2621.1,2620.9,0.5541]
[1739379103231,0.7631,2621.1,2621.0,0.00572388]
[1739379104136,0.76305,2621.2,2621.0,0.00572388]
[1739379104343,0.76305,2621.2,2621.0,3.21352388]
[1739379104744,0.76303,2621.3,2621.0,3.21352388]
[1739379104944,0.76304,2621.2,2621.0,3.21352388]
[1739379105142,0.76303,2621.3,2621.0,3.21352388]
[1739379105345,1.1877,2621.5,2621.0,3.21352388]
[1739379105346,3.1057,2621.5,2621.0,3.21352388]
[1739379105540,1.919,2621.6,2621.2,0.76303]
[1739379106349,1.919,2621.6,2621.2,0.76304]
[1739379106942,1.919,2621.6,2621.0,3.21352388]
[1739379107148,0.763,2621.4,2621.0,3.21352388]
[1739379107348,1.919,2621.6,2621.0,3.21352388]
[1739379107847,0.76297,2621.5,2621.0,3.97662388]
[1739379108048,1.919,2621.6,2621.3,3.2078]
[1739379108647,2.68194,2621.6,2621.3,3.2078]
[1739379108949,1.919,2621.6,2621.0,4.38332388]
[1739379109146,1.919,2621.6,2621.0,1.93862388]
[1739379109347,1.919,2621.6,2621.0,1.17552388]
[1739379109946,1.919,2621.6,2621.3,3.2078]
[1739379110248,0.6018,2622.0,2621.7,0.76289]
[1739379110449,0.76278,2622.2,2621.8,3.2078]
[1739379110641,0.76278,2622.1,2621.8,4.3776]
[1739379110848,1.92,2622.3,2621.8,4.3776]
[1739379111649,0.76277,2622.2,2621.8,4.3776]
[1739379111951,1.92,2622.3,2621.9,0.76283]
[1739379112251,1.92,2622.3,2622.0,0.76281]
[1739379112443,0.5571,2622.4,2621.8,8.40384291]
[1739379112642,2.68540388,2622.5,2622.2,3.2078]
[1739379112842,0.76840388,2622.5,2622.2,3.2078]
[1739379113343,0.00572388,2622.5,2622.2,3.2078]
[1739379113649,0.00572388,2622.5,2621.9,3.2078]
[1739379114042,0.06595413,2622.4,2621.9,3.2078]
[1739379114239,0.76276,2622.2,2621.9,3.2078]
[1739379114643,0.76274,2622.3,2621.9,3.2078]
[1739379115047,0.00572388,2622.5,2621.9,3.2078]
[1739379115349,0.76272,2622.3,2621.9,3.97063]